bitfinex/quotes_BTCUSD_20250326
["timestamp","ask_amount","ask_price","bid_price","bid_amount"]
[1742947202642,0.02722674,87588.0,87587.0,0.09224085]
[1742947203704,0.02722674,87588.0,87587.0,0.14104085]
[1742947205429,0.15390674,87588.0,87587.0,0.14104085]
[1742947205628,0.16929741,87588.0,87587.0,0.14104085]
[1742947205844,0.02722674,87588.0,87587.0,0.30015171]
[1742947206124,0.00478764,87611.0,87587.0,0.30015171]
[1742947206125,0.00478764,87611.0,87610.0,0.18555487]
[1742947206290,0.12664,87638.0,87634.0,0.0488]
[1742947206475,0.239629,87635.0,87634.0,0.10785487]
[1742947206603,0.239629,87635.0,87634.0,0.06334085]
[1742947206604,0.387589,87635.0,87634.0,0.06334085]
[1742947206811,0.239689,87613.0,87612.0,0.42514085]
[1742947207007,0.239689,87613.0,87612.0,0.54735487]
[1742947207273,0.228224,87633.0,87619.0,0.04451402]
[1742947207487,0.01141,87639.0,87633.0,0.04451402]
[1742947207599,0.0115796,87641.0,87637.0,0.04451402]
[1742947207805,0.01141,87637.0,87636.0,0.09224085]
[1742947208066,0.01141,87637.0,87636.0,0.13675487]
[1742947208498,0.0001696,87641.0,87640.0,0.13675487]
[1742947208697,0.02269627,87660.0,87647.0,0.04451402]
[1742947208902,0.011408,87651.0,87647.0,0.09224085]
[1742947209129,1.04824481,87648.0,87647.0,0.09224085]
[1742947209273,0.23453544,87648.0,87647.0,0.13375487]
[1742947209482,0.25775244,87648.0,87647.0,0.12975487]
[1742947209864,0.01815844,87648.0,87647.0,0.361232]
[1742947210498,0.12788,87672.0,87669.0,0.0809]
[1742947210701,0.011406,87670.0,87669.0,0.12241402]
[1742947210908,0.011406,87670.0,87669.0,0.0809]
[1742947211291,0.011406,87670.0,87669.0,0.12041402]
[1742947211503,0.2396956,87673.0,87672.0,0.01851402]
[1742947211699,0.2396956,87673.0,87672.0,0.04151402]
[1742947211939,0.2396956,87673.0,87672.0,0.05605487]
[1742947212166,0.0115756,87673.0,87672.0,0.05605487]
[1742947212406,0.0115756,87673.0,87672.0,0.05405487]
[1742947212620,0.0115756,87673.0,87672.0,0.05205487]
[1742947213142,0.0145756,87673.0,87672.0,0.05205487]
[1742947213347,0.0031696,87673.0,87672.0,0.05205487]
[1742947213982,0.0031696,87673.0,87672.0,0.229008]
[1742947214273,0.011406,87671.0,87670.0,0.03951402]
[1742947214496,0.011406,87671.0,87669.0,0.0759]
[1742947214497,0.239534,87670.0,87669.0,0.0759]
[1742947215059,0.564402,87670.0,87669.0,0.0759]
[1742947215467,0.239556,87662.0,87661.0,0.03951402]
[1742947215962,0.239556,87662.0,87658.0,0.0809]
[1742947215963,0.239563,87659.0,87658.0,0.0809]
[1742947216196,0.239583,87652.0,87651.0,0.03951402]
[1742947216403,0.011409,87650.0,87649.0,0.0809]
[1742947217356,0.01786573,87650.0,87649.0,0.23467166]
[1742947217787,0.01786573,87650.0,87649.0,0.32702368]
[1742947218176,0.02927473,87650.0,87649.0,0.24921251]
[1742947218290,0.02927473,87650.0,87649.0,0.25121251]
[1742947218492,0.01786573,87650.0,87649.0,0.24921251]
[1742947218697,0.01786573,87650.0,87649.0,0.25221251]
[1742947218926,0.01786573,87650.0,87649.0,0.25521251]
[1742947219278,0.01786573,87650.0,87649.0,0.25221251]
[1742947220544,0.01786573,87650.0,87649.0,0.21469849]
[1742947220781,0.01786573,87650.0,87649.0,0.25421251]
[1742947221161,0.02927473,87650.0,87649.0,0.13995487]
[1742947221588,0.01786573,87650.0,87649.0,0.322552]
[1742947221761,0.2282916,87673.0,87665.0,0.03951402]
[1742947221762,0.12836,87672.0,87665.0,0.03951402]
[1742947221982,0.0001696,87673.0,87671.0,0.01454085]
[1742947222324,0.0001696,87673.0,87672.0,0.03951402]
[1742947222727,0.0001696,87673.0,87672.0,0.19845186]
[1742947223067,0.0001696,87673.0,87672.0,0.19545186]
[1742947223683,0.0001696,87673.0,87672.0,0.16531251]
[1742947224182,0.0031696,87673.0,87672.0,0.16531251]
[1742947224480,0.0001696,87673.0,87672.0,0.16531251]
[1742947224685,0.0011696,87673.0,87672.0,0.16531251]
[1742947225096,0.0041696,87673.0,87672.0,0.16531251]
[1742947225309,0.0041696,87673.0,87672.0,0.23598376]
[1742947225470,0.0011696,87673.0,87672.0,0.23598376]
[1742947225642,0.00121646,87673.0,87672.0,0.16531251]
[1742947225842,0.00221646,87673.0,87672.0,0.16531251]
[1742947226490,0.00221646,87673.0,87672.0,0.57591251]
[1742947226810,0.00121646,87673.0,87672.0,0.57591251]
[1742947227101,0.00021646,87673.0,87672.0,0.62537499]
[1742947227463,0.00021646,87673.0,87672.0,0.62637499]
[1742947228409,0.00021646,87673.0,87672.0,0.57691251]
[1742947231119,0.00021646,87673.0,87672.0,0.57591251]
[1742947231320,0.00021646,87673.0,87672.0,0.16531251]
[1742947231565,0.00021646,87673.0,87672.0,0.16731251]
[1742947232135,0.00021646,87673.0,87672.0,0.16931251]
[1742947232350,0.01162246,87673.0,87672.0,0.004]
[1742947232553,0.26166881,87673.0,87672.0,0.004]
[1742947232752,0.21126146,87673.0,87672.0,0.004]
[1742947233359,0.21126146,87673.0,87672.0,0.002]
[1742947233733,0.21126146,87673.0,87672.0,0.003]
[1742947233946,0.21126146,87673.0,87672.0,0.001]
[1742947233947,0.23454266,87673.0,87672.0,0.001]
[1742947234088,0.23371602,87673.0,87672.0,0.001]
[1742947234836,0.32914352,87673.0,87672.0,0.001]
[1742947235002,0.011407,87662.0,87656.0,0.03651402]
[1742947235212,0.140087,87662.0,87656.0,0.03651402]
[1742947235609,0.820176,87662.0,87656.0,0.03651402]
[1742947235813,1.048325,87662.0,87656.0,0.03651402]
[1742947236277,1.048325,87662.0,87661.0,0.051]
[1742947236655,1.06614927,87662.0,87661.0,0.051]
[1742947237019,0.87314427,87662.0,87661.0,0.051]
[1742947237215,0.80915827,87662.0,87661.0,0.051]
[1742947237798,0.76201827,87662.0,87661.0,0.052]
[1742947241383,0.87627591,87662.0,87661.0,0.052]
[1742947241552,0.239589,87650.0,87649.0,0.000339]
[1742947241955,2.610207,87650.0,87649.0,0.000339]
[1742947242155,2.277357,87650.0,87649.0,0.000339]
[1742947242334,2.242972,87650.0,87649.0,0.000339]
[1742947242542,2.175862,87650.0,87649.0,0.000339]
[1742947242763,1.990233,87650.0,87649.0,0.002339]
[1742947242956,1.729103,87650.0,87649.0,0.002339]
[1742947243157,1.7480685,87650.0,87649.0,0.002339]
[1742947243626,1.7018625,87650.0,87649.0,0.002339]
[1742947243832,1.2174185,87650.0,87649.0,0.002339]
[1742947244036,1.2174185,87650.0,87649.0,0.004339]
[1742947244177,0.239589,87650.0,87649.0,0.004339]
[1742947244375,1.898839,87650.0,87649.0,0.004339]
[1742947244688,2.766383,87650.0,87649.0,0.004339]
[1742947244905,3.02059,87650.0,87649.0,0.004339]
[1742947245270,2.91528985,87650.0,87649.0,0.004339]
[1742947245474,2.90743949,87650.0,87649.0,0.004339]
[1742947246345,2.90743949,87650.0,87649.0,0.002339]
[1742947246346,2.84599649,87650.0,87649.0,0.002339]
[1742947246696,2.84599649,87650.0,87649.0,0.000339]
[1742947246897,3.14599649,87650.0,87649.0,0.000339]
[1742947247076,3.14599649,87650.0,87649.0,0.001339]
[1742947247523,3.14599649,87650.0,87649.0,0.000339]
[1742947247754,3.14599649,87650.0,87649.0,0.003339]
[1742947247968,3.16892634,87650.0,87649.0,0.003339]
[1742947248209,3.16892634,87650.0,87649.0,0.000339]
[1742947248445,3.11790734,87650.0,87649.0,0.000339]
[1742947249064,3.0036497,87650.0,87649.0,0.000339]
[1742947249620,3.0056497,87650.0,87649.0,0.000339]
[1742947250311,0.539643,87630.0,87629.0,0.0766]
[1742947250473,0.53967,87620.0,87619.0,0.09615487]
[1742947250845,0.53967,87620.0,87619.0,0.17275487]
[1742947251067,0.53967,87620.0,87619.0,0.12765487]
[1742947251068,0.55754017,87620.0,87619.0,0.12765487]
[1742947251339,0.66122719,87620.0,87619.0,0.0766]
[1742947251541,0.311415,87597.0,87596.0,0.0493]
[1742947251743,0.311415,87597.0,87596.0,0.20007166]
[1742947251948,0.311415,87597.0,87596.0,0.16441402]
[1742947252455,0.539736,87596.0,87595.0,0.00041119]
[1742947252794,1.244008,87596.0,87595.0,0.00041119]
[1742947254243,1.244008,87596.0,87595.0,0.00341119]
[1742947254461,1.35826564,87596.0,87595.0,0.00341119]
[1742947254756,1.35826564,87596.0,87595.0,0.00041119]
[1742947254938,1.35826564,87596.0,87595.0,0.00241119]
[1742947255188,1.37614287,87596.0,87595.0,0.00541119]
[1742947257326,1.37614287,87596.0,87595.0,1.9e-07]
[1742947257461,0.67187087,87596.0,87595.0,1.9e-07]
[1742947258403,0.539758,87588.0,87584.0,0.000339]
[1742947258606,4.2231805,87588.0,87584.0,0.000339]
[1742947258811,3.0282785,87588.0,87584.0,0.000339]
[1742947259400,3.0282785,87588.0,87587.0,2e-07]
[1742947259601,0.6874835,87588.0,87587.0,2e-07]
[1742947259799,0.6894835,87588.0,87587.0,2e-07]
[1742947260988,0.6914835,87588.0,87587.0,2e-07]
[1742947261188,0.539766,87585.0,87584.0,2e-07]
[1742947262369,0.541766,87585.0,87584.0,2e-07]
[1742947263538,0.542766,87585.0,87584.0,2e-07]
[1742947264235,0.541766,87585.0,87584.0,2e-07]
[1742947264713,0.543766,87585.0,87584.0,2e-07]
[1742947264933,0.5627315,87585.0,87584.0,2e-07]
[1742947265348,0.5607315,87585.0,87584.0,2e-07]
[1742947265527,0.6893315,87585.0,87584.0,2e-07]
[1742947265679,0.71021264,87585.0,87584.0,2e-07]
[1742947267490,0.71038234,87585.0,87584.0,2e-07]
[1742947268109,0.58178234,87585.0,87584.0,2e-07]
[1742947269148,0.71030234,87585.0,87584.0,2e-07]
[1742947269356,0.58178234,87585.0,87584.0,2e-07]
[1742947269512,0.71026234,87585.0,87584.0,2e-07]
[1742947270194,0.73315794,87585.0,87584.0,2e-07]
[1742947270559,1.15145794,87585.0,87584.0,2e-07]
[1742947271394,1.15603694,87585.0,87584.0,2e-07]
[1742947271935,1.15595694,87585.0,87584.0,2e-07]
[1742947272288,1.1380758,87585.0,87584.0,2e-07]
[1742947273703,1.1430758,87585.0,87584.0,2e-07]
[1742947273956,0.239829,87562.0,87560.0,1e-06]
[1742947274125,3.64427064,87561.0,87560.0,1e-06]
[1742947274336,3.105975,87561.0,87560.0,1e-06]
[1742947274921,3.105975,87561.0,87547.0,0.000339]
[1742947274922,0.539868,87548.0,87547.0,8e-07]
[1742947275347,0.539868,87548.0,87547.0,0.00012401]
[1742947275746,0.5588335,87548.0,87547.0,0.00012401]
[1742947276513,0.5767222,87548.0,87547.0,0.00012401]
[1742947276849,2.2442632,87548.0,87547.0,0.00012401]
[1742947277050,2.3766622,87548.0,87547.0,0.00012401]
[1742947277269,2.2576672,87548.0,87547.0,0.00012401]
[1742947279094,2.1306832,87548.0,87547.0,0.00012401]
[1742947281248,2.0628022,87548.0,87547.0,0.00012401]
[1742947281456,2.08551057,87548.0,87547.0,0.00012401]
[1742947282149,1.97859157,87548.0,87547.0,0.00012401]
[1742947282362,1.96070287,87548.0,87547.0,0.00012401]
[1742947285420,1.97859181,87548.0,87547.0,0.00012401]
[1742947285929,0.239875,87545.0,87544.0,1e-08]
[1742947286057,0.668035,87545.0,87544.0,7.9e-07]
[1742947287748,0.668035,87545.0,87544.0,0.00100079]
[1742947289173,2.233171,87545.0,87544.0,0.00100079]
[1742947289348,2.3676685,87545.0,87544.0,0.00100079]
[1742947289527,2.2380175,87545.0,87544.0,0.00100079]
[1742947290473,2.2380175,87545.0,87544.0,7.9e-07]
[1742947290820,0.6870005,87545.0,87544.0,7.9e-07]
[1742947292802,0.6870005,87545.0,87544.0,4.9e-07]
[1742947295372,0.70489085,87545.0,87544.0,4.9e-07]
[1742947295594,0.69989085,87545.0,87544.0,4.9e-07]
[1742947296516,0.70447085,87545.0,87544.0,4.9e-07]
[1742947298685,0.70447085,87545.0,87528.0,8.9e-07]
[1742947298686,0.239919,87529.0,87528.0,8.9e-07]
[1742947298949,0.667719,87529.0,87528.0,0.07664193]
[1742947299518,0.68561019,87529.0,87528.0,0.07664193]
[1742947300026,0.97644319,87529.0,87528.0,0.07664193]
[1742947301020,0.97744319,87529.0,87528.0,0.07664193]
[1742947301778,0.95388419,87529.0,87528.0,0.07664193]
[1742947301980,0.93877419,87529.0,87528.0,0.07664193]
[1742947302182,0.920883,87529.0,87528.0,0.07664193]
[1742947303446,0.9398485,87529.0,87528.0,0.07664193]
[1742947303655,0.6876445,87529.0,87528.0,0.07664193]
[1742947303852,0.668679,87529.0,87528.0,0.07664193]
[1742947304160,1.00544211,87529.0,87528.0,0.07664193]
[1742947304495,0.99424811,87529.0,87528.0,0.07664193]
[1742947305271,1.01213955,87529.0,87528.0,0.07664193]
[1742947309757,1.51213955,87529.0,87528.0,0.07664193]
[1742947311051,1.51213955,87529.0,87528.0,4.193e-05]
[1742947311052,1.62639719,87529.0,87528.0,4.193e-05]
[1742947312292,1.60750575,87529.0,87528.0,4.193e-05]
[1742947315296,1.62539801,87529.0,87528.0,4.193e-05]
[1742947321629,1.32235201,87529.0,87528.0,4.193e-05]
[1742947322091,3.26931401,87529.0,87528.0,4.193e-05]
[1742947322299,3.16541275,87529.0,87528.0,4.193e-05]
[1742947322828,3.00165075,87529.0,87528.0,4.193e-05]
[1742947323027,2.87389075,87529.0,87528.0,4.193e-05]
[1742947323404,2.96115675,87529.0,87528.0,4.193e-05]
[1742947324140,0.539938,87522.0,87521.0,9.3e-07]
[1742947324343,0.539938,87522.0,87521.0,8.9e-07]
[1742947325359,0.55783153,87522.0,87521.0,8.9e-07]
[1742947332438,0.539938,87522.0,87521.0,8.9e-07]
[1742947334801,0.539938,87522.0,87496.0,0.0003394]
[1742947334802,0.589438,87522.0,87496.0,0.0003394]
[1742947335002,0.589438,87522.0,87500.0,1.03471402]
[1742947335003,0.539996,87501.0,87500.0,1.03471402]
[1742947335267,1.216958,87501.0,87500.0,1.03476098]
[1742947335415,1.177116,87501.0,87500.0,0.99824696]
[1742947335625,1.177116,87501.0,87500.0,1.03476098]
[1742947336487,1.19501199,87501.0,87500.0,1.03476098]
[1742947337703,0.94858399,87501.0,87500.0,1.03476098]
[1742947338064,0.93764899,87501.0,87500.0,1.03476098]
[1742947339210,0.93764899,87501.0,87500.0,0.99824696]
[1742947339375,0.93764899,87501.0,87500.0,1.03476098]
[1742947340279,0.93764899,87501.0,87500.0,1.03493058]
[1742947341258,0.88183299,87501.0,87500.0,1.03493058]
[1742947341595,0.83886392,87501.0,87500.0,1.03493058]
[1742947342148,0.82096793,87501.0,87500.0,1.03493058]
[1742947342378,0.69320793,87501.0,87500.0,1.03493058]
[1742947342585,0.82076793,87501.0,87500.0,1.03493058]
[1742947344543,0.69320793,87501.0,87500.0,1.03493058]
[1742947344701,0.69036193,87501.0,87500.0,1.03493058]
[1742947344895,1.37214893,87501.0,87500.0,1.03493058]
[1742947345103,1.39004449,87501.0,87500.0,1.03493058]
[1742947346190,1.39004449,87501.0,87500.0,1.17587143]
[1742947346191,0.01789556,87501.0,87500.0,1.17587143]
[1742947347776,0.01789556,87501.0,87500.0,1.38448577]
[1742947348021,0.01789556,87501.0,87500.0,1.29212907]
[1742947348232,0.01789556,87501.0,87500.0,1.29012907]
[1742947348705,0.01889556,87501.0,87500.0,1.29312907]
[1742947349129,0.01789556,87501.0,87500.0,1.29012907]
[1742947349331,0.001,87501.0,87500.0,1.63495771]
[1742947349488,0.228506,87525.0,87509.0,0.40500187]
[1742947349688,0.2581716,87522.0,87509.0,0.29171251]
[1742947349893,0.40270371,87510.0,87509.0,0.29171251]
[1742947350094,0.41413071,87510.0,87509.0,0.29071251]
[1742947350848,0.41513071,87510.0,87509.0,0.29471251]
[1742947351054,0.41513071,87510.0,87509.0,0.16591402]
[1742947351055,0.43302264,87510.0,87509.0,0.16591402]
[1742947351360,0.43302264,87510.0,87509.0,0.11781402]
[1742947351361,0.56066264,87510.0,87509.0,0.11781402]
[1742947351685,0.94358764,87510.0,87509.0,0.11781402]
[1742947351884,0.67801064,87510.0,87509.0,0.11381402]
[1742947352106,0.68983071,87510.0,87509.0,0.11381402]
[1742947352307,0.68983071,87510.0,87509.0,0.11981402]
[1742947352506,0.68983071,87510.0,87509.0,0.11381402]
[1742947352729,0.70772455,87510.0,87509.0,0.03951402]
[1742947352932,0.70772455,87510.0,87509.0,0.04151402]
[1742947353145,0.60502084,87510.0,87509.0,0.03751402]
[1742947353601,0.60502084,87510.0,87509.0,0.03951402]
[1742947358549,0.45696084,87510.0,87509.0,0.03951402]
[1742947358755,0.81307584,87510.0,87509.0,0.03951402]
[1742947362197,0.795182,87510.0,87509.0,0.03951402]
[1742947362785,1.295182,87510.0,87509.0,0.03951402]
[1742947363258,1.167542,87510.0,87509.0,0.03951402]
[1742947363461,1.294902,87510.0,87509.0,0.03951402]
[1742947364128,0.938787,87510.0,87509.0,0.03951402]
[1742947364361,1.425947,87510.0,87509.0,0.03951402]
[1742947364569,1.300105,87510.0,87509.0,0.03951402]
[1742947364853,1.278306,87510.0,87509.0,0.03951402]
[1742947365225,1.29620029,87510.0,87509.0,0.03951402]
[1742947370409,1.29620029,87510.0,87509.0,0.004]
[1742947370623,1.29620029,87510.0,87509.0,0.03951402]
[1742947371722,1.20950429,87510.0,87509.0,0.03951402]
[1742947371916,1.18423729,87510.0,87509.0,0.03951402]
[1742947372116,1.14750829,87510.0,87509.0,0.03951402]
[1742947372317,1.129614,87510.0,87509.0,0.03951402]
[1742947372906,1.104717,87510.0,87509.0,0.03951402]
[1742947375326,1.1226113,87510.0,87509.0,0.03951402]
[1742947375731,1.1108383,87510.0,87509.0,0.03951402]
[1742947377674,1.1108383,87510.0,87509.0,0.03968362]
[1742947377995,1.1111775,87510.0,87509.0,0.03968362]
[1742947378608,1.1108175,87510.0,87509.0,0.03968362]
[1742947380477,0.9566605,87510.0,87509.0,0.03968362]
[1742947380705,1.4141175,87510.0,87509.0,0.03968362]
[1742947380915,1.2758635,87510.0,87509.0,0.03968362]
[1742947381370,1.2606635,87510.0,87509.0,0.03968362]
[1742947382481,1.2427692,87510.0,87509.0,0.03968362]
[1742947382713,1.1264852,87510.0,87509.0,0.03968362]
[1742947384096,1.0809202,87510.0,87509.0,0.03968362]
[1742947384861,1.0493162,87510.0,87509.0,0.03968362]
[1742947385748,0.5117662,87510.0,87509.0,0.12078362]
[1742947385923,0.5003392,87510.0,87509.0,0.13532447]
[1742947386227,0.7403112,87510.0,87509.0,0.13532447]
[1742947386799,0.7403112,87510.0,87509.0,0.13332447]
[1742947387001,1.0403112,87510.0,87509.0,0.13332447]
[1742947387202,1.0403112,87510.0,87509.0,0.13732447]
[1742947387811,1.0403112,87510.0,87509.0,0.13332447]
[1742947388209,1.0403112,87510.0,87509.0,0.13132447]
[1742947388413,1.0403112,87510.0,87509.0,0.13532447]
[1742947389046,1.0403112,87510.0,87509.0,0.13832447]
[1742947389251,1.0403112,87510.0,87509.0,0.13532447]
[1742947389666,1.0403112,87510.0,87509.0,0.13832447]
[1742947391281,1.0403112,87510.0,87509.0,0.12378362]
[1742947392213,1.5403112,87510.0,87509.0,0.12378362]
[1742947400413,1.55820415,87510.0,87509.0,0.12378362]
[1742947401585,1.5403112,87510.0,87509.0,0.12378362]
[1742947401998,1.7728772,87510.0,87509.0,0.04268362]
[1742947402960,1.7728772,87510.0,87509.0,0.03568362]
[1742947403368,1.7728772,87510.0,87509.0,0.03968362]
[1742947403746,1.7728772,87510.0,87509.0,0.03568362]
[1742947403951,1.7728772,87510.0,87509.0,0.03868362]
[1742947404180,1.7728772,87510.0,87509.0,0.04068362]
[1742947404566,1.5403112,87510.0,87509.0,0.04068362]
[1742947404933,1.55820526,87510.0,87509.0,0.04068362]
[1742947405132,1.55820526,87510.0,87509.0,0.03768362]
[1742947405576,1.55820526,87510.0,87509.0,0.03968362]
[1742947406993,1.68508526,87510.0,87509.0,0.11778362]
[1742947412398,1.6671912,87510.0,87509.0,0.11778362]
[1742947413564,1.5403112,87510.0,87509.0,0.11778362]
[1742947413823,1.6671912,87510.0,87509.0,0.11778362]
[1742947415176,1.68508499,87510.0,87509.0,0.11778362]
[1742947416745,1.68222816,87510.0,87509.0,0.11778362]
[1742947417324,1.55534816,87510.0,87509.0,0.13232447]
[1742947417531,1.55534816,87510.0,87509.0,0.30687743]
[1742947417532,1.01537616,87510.0,87509.0,0.30687743]
[1742947417756,0.99748237,87510.0,87509.0,0.30687743]
[1742947417906,1.29748237,87510.0,87509.0,0.30687743]
[1742947418543,1.29748237,87510.0,87509.0,0.30487743]
[1742947418766,1.29748237,87510.0,87509.0,0.30287743]
[1742947418964,1.29748237,87510.0,87509.0,0.30587743]
[1742947419514,1.29748237,87510.0,87509.0,0.31087743]
[1742947419722,1.29748237,87510.0,87509.0,0.30787743]
[1742947420030,1.29748237,87510.0,87509.0,0.31287743]
[1742947420336,1.29748237,87510.0,87509.0,0.30108211]
[1742947428983,1.30890937,87510.0,87509.0,0.04568362]
[1742947430036,1.30890937,87510.0,87509.0,0.06022447]
[1742947430844,1.29748237,87510.0,87509.0,0.30488211]
[1742947434994,1.29748237,87510.0,87509.0,0.32772045]
[1742947435402,1.29748237,87510.0,87509.0,0.35272045]
[1742947435625,1.29748237,87510.0,87509.0,0.36414745]
[1742947435830,1.29748237,87510.0,87509.0,0.77474745]
[1742947436090,1.29748237,87510.0,87509.0,0.88400509]
[1742947436483,1.29748237,87510.0,87509.0,0.87900509]
[1742947436689,1.29748237,87510.0,87509.0,0.88500509]
[1742947437539,1.29748237,87510.0,87509.0,0.89100509]
[1742947437946,1.29748237,87510.0,87509.0,0.87900509]
[1742947438310,1.29748237,87510.0,87509.0,0.89100509]
[1742947439136,0.99748237,87510.0,87509.0,0.89100509]
[1742947439510,0.99748237,87510.0,87509.0,0.88500509]
[1742947439952,0.99748237,87510.0,87509.0,0.89100509]
[1742947440576,0.99748237,87510.0,87509.0,0.88500509]
[1742947440772,0.99748237,87510.0,87509.0,0.89100509]
[1742947444192,0.99748237,87510.0,87509.0,1.43488509]
[1742947450780,0.99748237,87510.0,87509.0,1.30920045]
[1742947451536,0.99748237,87510.0,87509.0,1.32062745]
[1742947452927,0.99748237,87510.0,87509.0,1.44746745]
[1742947454075,0.99748237,87510.0,87509.0,1.43604045]
[1742947456881,1.29748237,87510.0,87509.0,1.26040045]
[1742947457056,1.29748237,87510.0,87509.0,1.15596211]
[1742947457207,1.29748237,87510.0,87509.0,1.14142126]
[1742947457460,1.29748237,87510.0,87509.0,1.15596211]
[1742947459606,1.29748237,87510.0,87509.0,1.14996211]
[1742947460108,1.29748237,87510.0,87509.0,1.15596211]
[1742947460349,1.29748237,87510.0,87509.0,1.14996211]
[1742947461002,1.29748237,87510.0,87509.0,1.15596211]
[1742947461442,1.29748237,87510.0,87509.0,1.14996211]
[1742947461678,1.29748237,87510.0,87509.0,1.15596211]
[1742947461895,1.29748237,87510.0,87509.0,1.14996211]
[1742947462339,1.29748237,87510.0,87509.0,1.15596211]
[1742947462594,1.29748237,87510.0,87509.0,1.14996211]
[1742947462817,1.29748237,87510.0,87509.0,1.15596211]
[1742947463047,1.29748237,87510.0,87509.0,1.14996211]
[1742947463294,1.29748237,87510.0,87509.0,1.12496211]
[1742947463685,1.29748237,87510.0,87509.0,1.15596211]
[1742947471455,1.29748237,87510.0,87509.0,1.09544809]
[1742947471655,1.29748237,87510.0,87509.0,1.15596211]
[1742947471850,1.29748237,87510.0,87509.0,1.13096211]
[1742947473037,1.61445437,87510.0,87509.0,0.04768362]
[1742947473386,1.66255437,87510.0,87509.0,0.04768362]
[1742947473680,1.66255437,87510.0,87509.0,0.05622447]
[1742947473860,1.58555437,87510.0,87509.0,0.05622447]
[1742947474067,1.58555437,87510.0,87509.0,0.04768362]
[1742947474844,1.58555437,87510.0,87509.0,0.04168362]
[1742947475261,1.58555437,87510.0,87509.0,0.04768362]
[1742947475466,1.58555437,87510.0,87509.0,0.04065362]
[1742947476471,1.58555437,87510.0,87509.0,0.03465362]
[1742947476679,1.58555437,87510.0,87509.0,0.03965362]
[1742947477121,1.58555437,87510.0,87509.0,0.005]
[1742947477319,1.58555437,87510.0,87509.0,0.03965362]
[1742947477949,1.58555437,87510.0,87509.0,0.04365362]
[1742947480051,1.69981201,87510.0,87509.0,0.04365362]
[1742947480295,1.93476537,87510.0,87509.0,0.04365362]
[1742947482160,1.93476537,87510.0,87509.0,0.03982322]
[1742947482590,1.93476537,87510.0,87509.0,0.04282322]
[1742947482748,1.93476537,87510.0,87509.0,0.03782322]
[1742947482948,1.93476537,87510.0,87509.0,0.04182322]
[1742947483345,1.83698437,87510.0,87509.0,0.04182322]
[1742947483542,1.78548337,87510.0,87509.0,0.04182322]
[1742947483749,1.76342437,87510.0,87509.0,0.04182322]
[1742947483948,1.76342437,87510.0,87509.0,0.03782322]
[1742947484287,1.87768201,87510.0,87509.0,0.03782322]
[1742947484669,1.87768201,87510.0,87509.0,0.04082322]
[1742947484871,1.76342437,87510.0,87509.0,0.04082322]
[1742947486001,1.7861991,87510.0,87509.0,0.04082322]
[1742947486587,1.80409244,87510.0,87509.0,0.04082322]
[1742947486783,1.93097244,87510.0,87509.0,0.04082322]
[1742947492291,1.9130791,87510.0,87509.0,0.04082322]
[1742947495425,1.7352091,87510.0,87509.0,0.04082322]
[1742947495634,1.8869061,87510.0,87509.0,0.04082322]
[1742947496703,1.90479942,87510.0,87509.0,0.04082322]
[1742947498541,1.98709942,87510.0,87509.0,0.04082322]
[1742947499564,1.98709942,87510.0,87509.0,0.03782322]
[1742947499804,2.10135706,87510.0,87509.0,0.03982322]
[1742947500508,2.10135706,87510.0,87509.0,0.03682322]
[1742947500992,2.10135706,87510.0,87509.0,0.03882322]
[1742947501151,2.10135706,87510.0,87509.0,0.03482322]
[1742947501587,2.10135706,87510.0,87509.0,0.03682322]
[1742947502479,2.08346374,87510.0,87509.0,0.03682322]
[1742947503817,2.08346374,87510.0,87509.0,0.0021696]
[1742947503981,2.08346374,87510.0,87509.0,0.03682322]
[1742947505211,2.10135862,87510.0,87509.0,0.03682322]
[1742947505907,2.10135862,87510.0,87509.0,2.2e-07]
[1742947506107,1.94966162,87510.0,87509.0,2.2e-07]
[1742947506866,1.94966162,87510.0,87506.0,0.0001696]
[1742947506867,0.53998,87507.0,87506.0,0.0001696]
[1742947507074,1.7993175,87507.0,87506.0,0.0001696]
[1742947507366,1.7135095,87507.0,87506.0,0.0001696]
[1742947507547,1.6932625,87507.0,87506.0,0.0001696]
[1742947508218,1.6932625,87507.0,87506.0,0.0021696]
[1742947508506,1.6932625,87507.0,87506.0,0.0041696]
[1742947508930,1.674297,87507.0,87506.0,0.0041696]
[1742947511300,1.663367,87507.0,87506.0,0.0041696]
[1742947515290,1.68126202,87507.0,87506.0,0.0041696]
[1742947516263,1.13895002,87507.0,87506.0,0.0041696]
[1742947518434,1.21548402,87507.0,87506.0,0.0041696]
[1742947518633,1.32974166,87507.0,87506.0,0.0041696]
[1742947519412,0.539996,87501.0,87500.0,1.6e-07]
[1742947519621,2.773322,87500.0,87499.0,3.6e-07]
[1742947519845,0.3303935,87500.0,87499.0,0.0001237]
[1742947520841,2.1107565,87500.0,87499.0,0.0021237]
[1742947521482,2.1107565,87500.0,87499.0,0.0041237]
[1742947524696,2.1107565,87500.0,87499.0,7e-07]
[1742947524914,0.540021,87492.0,87491.0,1.3e-07]
[1742947525139,0.666901,87492.0,87491.0,5.6e-07]
[1742947526814,0.540021,87492.0,87491.0,5.6e-07]
[1742947527074,0.666901,87492.0,87491.0,5.6e-07]
[1742947527278,0.666901,87492.0,87491.0,0.00300056]
[1742947527680,1.495465,87492.0,87491.0,5.6e-07]
[1742947527955,0.668901,87492.0,87491.0,5.6e-07]
[1742947528846,0.668901,87492.0,87491.0,0.00017016]
[1742947529080,0.69200792,87492.0,87491.0,0.00017016]
[1742947529305,0.80626556,87492.0,87491.0,1.6e-07]
[1742947532965,0.88848267,87492.0,87491.0,1.6e-07]
[1742947533211,0.85376556,87492.0,87491.0,1.6e-07]
[1742947533904,0.85276556,87492.0,87491.0,1.6e-07]
[1742947534370,0.85576556,87492.0,87491.0,1.6e-07]
[1742947534563,0.85476556,87492.0,87491.0,1.6e-07]
[1742947535532,0.89148267,87492.0,87491.0,1.6e-07]
[1742947535741,0.90938321,87492.0,87491.0,1.6e-07]
[1742947537300,0.8746661,87492.0,87491.0,1.6e-07]
[1742947540627,0.8750053,87492.0,87491.0,1.6e-07]
[1742947542334,0.85710476,87492.0,87491.0,1.6e-07]
[1742947542745,1.27540476,87492.0,87491.0,1.6e-07]
[1742947545214,1.29330556,87492.0,87491.0,1.6e-07]
[1742947549073,0.540098,87464.0,87463.0,8.6e-07]
[1742947549385,0.667018,87464.0,87463.0,8.6e-07]
[1742947549794,0.6849206,87464.0,87463.0,8.6e-07]
[1742947550542,0.6849206,87464.0,87463.0,4.192e-05]
[1742947551135,0.6849206,87464.0,87463.0,0.00804192]
[1742947551922,1.05830324,87464.0,87463.0,9.2e-07]
[1742947552149,0.540108,87460.0,87459.0,0.0001698]
[1742947552357,1.422474,87460.0,87459.0,0.00021674]
[1742947552527,1.354974,87460.0,87459.0,0.00021674]
[1742947552929,1.344037,87460.0,87459.0,0.00021674]
[1742947553128,1.3630025,87460.0,87459.0,0.00021674]
[1742947553503,1.344037,87460.0,87459.0,0.00021674]